bitfinex-derivatives/quotes_ETHF0:USTF0_20240817
["timestamp","ask_amount","ask_price","bid_price","bid_amount"]
[1723855484755,3.54781992,2594.5,2594.4,0.00339518]
[1723855484944,2.03339026,2594.5,2594.4,0.00339518]
[1723855485152,0.10685026,2594.5,2594.4,0.00339518]
[1723855485356,2.03339026,2594.5,2594.4,0.00339518]
[1723855485557,3.54773402,2594.5,2594.4,0.00339518]
[1723855485856,2.03339026,2594.5,2594.4,0.00339518]
[1723855488072,1.92654,2594.5,2594.4,0.00339518]
[1723855488356,2.03339335,2594.5,2594.4,0.00339518]
[1723855489758,3.54772843,2594.5,2594.4,0.00339518]
[1723855490147,2.03339335,2594.5,2594.4,0.00339518]
[1723855491352,1.62131028,2594.5,2594.4,0.00339518]
[1723855491555,1.62131028,2594.5,2594.4,2.27291518]
[1723855491751,0.10685335,2594.5,2594.4,2.27291518]
[1723855492156,1.62131028,2594.5,2594.4,0.34629518]
[1723855493248,1.62131028,2594.5,2594.4,2.27291518]
[1723855494860,1.62131028,2594.5,2594.4,0.34629518]
[1723855496162,0.10685335,2594.5,2594.4,6.12731518]
[1723855496366,1.51519926,2594.5,2594.4,7.13292996]
[1723855496663,1.62203029,2594.5,2594.4,7.13292996]
[1723855496863,1.62203029,2594.5,2594.4,6.12731518]
[1723855497053,1.62203918,2594.5,2594.4,6.12731518]
[1723855497253,1.62240049,2594.5,2594.4,7.13292996]
[1723855497462,0.10683992,2594.5,2594.4,7.13292996]
[1723855498053,2.12432767,2594.5,2594.4,7.13292996]
[1723855498254,2.12433392,2594.5,2594.4,7.13292996]
[1723855499049,2.12433392,2594.5,2594.4,6.79002996]
[1723855499256,2.2732839,2594.5,2594.4,0.00339518]
[1723855500355,3.85338,2594.3,2594.2,0.00578402]
[1723855500559,1.92691,2594.0,2593.9,1.00561478]
[1723855500757,2.27371519,2594.0,2593.8,1.00561478]
[1723855501063,2.49869052,2593.9,2593.8,2.93267478]
[1723855501257,1.99652492,2593.9,2593.8,5.36592656]
[1723855501767,1.99652492,2593.9,2593.8,4.86898915]
[1723855502266,1.99652492,2593.9,2593.8,4.86882627]
[1723855502465,1.99652492,2593.9,2593.8,4.86878332]
[1723855502666,1.99652492,2593.9,2593.8,1.01436096]
[1723855503360,1.99652492,2593.9,2593.8,2.94142096]
[1723855504262,1.99652492,2593.9,2593.8,0.00458298]
[1723855504459,1.99652492,2593.9,2593.8,1.93164298]
[1723855504660,1.99652492,2593.9,2593.8,0.00458298]
[1723855505169,0.11014057,2593.9,2593.8,2.94142096]
[1723855505959,0.11014057,2593.9,2593.8,1.93164298]
[1723855506762,0.11014057,2593.9,2593.8,5.78684298]
[1723855506967,0.11014057,2593.9,2593.8,12.56163583]
[1723855507755,0.0032944,2593.9,2593.8,12.56163583]
[1723855507961,0.11016321,2593.9,2593.8,12.56163583]
[1723855508167,0.0032944,2593.9,2593.8,12.56163583]
[1723855508768,0.11016606,2593.9,2593.8,12.56163583]
[1723855508971,0.11016624,2593.9,2593.8,12.56163583]
[1723855509269,0.0032944,2593.9,2593.8,12.56163583]
[1723855510964,1.51648435,2594.3,2593.9,1.92699]
[1723855511160,1.51648435,2594.7,2594.5,1.92654]
[1723855511467,1.51648435,2595.1,2595.0,1.92617]
[1723855511670,0.7353,2595.2,2595.1,1.9261]
[1723855511868,0.84208404,2595.2,2595.1,1.9261]
[1723855512067,0.84683954,2595.2,2595.0,3.31313]
[1723855512263,0.84683954,2595.2,2594.8,2.39379612]
[1723855512264,0.10678688,2595.1,2594.8,2.39379612]
[1723855512469,0.10678688,2595.1,2594.8,1.92632]
[1723855512470,1.387,2595.1,2594.8,1.92632]
[1723855512669,1.387,2595.1,2594.8,5.9403506]
[1723855512966,0.3694,2595.0,2594.8,5.9403506]
[1723855513563,1.7564,2595.0,2594.8,4.0140306]
[1723855513770,1.7564,2595.0,2594.8,1.92628]
[1723855513972,0.0047555,2595.2,2595.1,1.9261]
[1723855514164,0.0047555,2595.2,2595.1,3.3131]
[1723855514369,0.0047555,2595.2,2595.1,10.03170597]
[1723855514671,0.0047555,2595.2,2594.7,2.93317612]
[1723855514672,5.7843755,2595.2,2594.7,2.93317612]
[1723855514970,0.0047555,2595.2,2595.0,5.63900597]
[1723855515276,0.0047555,2595.2,2595.1,1.9261]
[1723855516068,0.0047555,2595.2,2595.1,9.91370171]
[1723855522469,0.0047555,2595.2,2595.1,11.30070171]
[1723855525379,1.3917555,2595.2,2595.0,1.92614]
[1723855525573,1.0934,2595.1,2595.0,1.92614]
[1723855525773,1.0934,2595.1,2595.0,6.38263216]
[1723855526170,1.0934,2595.1,2595.0,1.92614]
[1723855528993,1.0934,2595.1,2594.9,1.92622]
[1723855529199,1.0934,2595.1,2595.0,1.92617]
[1723855529388,1.0934,2595.1,2595.0,6.10122291]
[1723855529888,0.3617,2595.1,2595.0,6.10122291]
[1723855530092,0.3617,2595.1,2595.0,6.47232291]
[1723855531191,0.0047555,2595.2,2595.1,1.9261]
[1723855531393,0.0047555,2595.2,2595.1,3.3131]
[1723855531587,0.70568402,2595.4,2595.1,3.3131]
[1723855531588,0.00578402,2595.4,2595.2,1.92602]
[1723855531792,0.00578402,2595.4,2595.3,3.31295]
[1723855531988,0.00578402,2595.4,2595.3,11.81630204]
[1723855532293,0.00578402,2595.4,2595.3,16.81630204]
[1723855532692,0.00852208,2595.4,2595.3,16.81630204]
[1723855534294,0.00852208,2595.4,2595.3,18.74225204]
[1723855534596,1.0781,2595.9,2595.8,1.92558]
[1723855534792,1.0781,2595.9,2595.8,7.16458]
[1723855534999,1.0781,2595.9,2595.8,3.31258]
[1723855535494,1.0781,2595.9,2595.8,3.31752635]
[1723855535495,1.08110403,2595.9,2595.8,3.31752635]
[1723855535700,6.32010403,2595.9,2595.8,0.00494635]
[1723855536000,8.24560403,2595.9,2595.8,0.00494635]
[1723855539998,6.32010403,2595.9,2595.8,0.00494635]
[1723855540590,1.08110403,2595.9,2595.8,1.39194635]
[1723855541990,1.08110403,2595.9,2595.8,3.31752635]
[1723855542304,0.38120403,2595.9,2595.8,7.16952635]
[1723855542605,0.00300403,2595.9,2595.8,11.34129107]
[1723855544408,0.00300403,2595.9,2595.8,14.54909107]
[1723855545698,0.00300403,2595.9,2595.8,11.34129107]
[1723855547606,0.00300403,2595.9,2595.8,7.48929107]
[1723855547800,1.92850403,2595.9,2595.8,4.17671107]
[1723855548000,0.00300403,2595.9,2595.8,0.00494635]
[1723855548202,0.36460403,2595.9,2595.8,0.00494635]
[1723855548701,0.36460403,2595.9,2595.1,5.393]
[1723855548702,12.52910403,2595.9,2595.1,5.393]
[1723855548909,3.31286,2595.5,2595.1,6.78]
[1723855549205,3.2078,2595.6,2595.2,3.31299]
[1723855549206,1.0643,2595.4,2595.2,3.31299]
[1723855549401,1.0643,2595.4,2595.3,1.92595]
[1723855549809,1.0643,2595.4,2595.3,1.92989054]
[1723855550002,1.0643,2595.4,2595.3,0.00394054]
[1723855551196,1.0643,2595.4,2595.3,1.92989054]
[1723855553404,0.7068,2595.4,2595.3,1.92989054]
[1723855554404,0.00300403,2595.9,2595.3,18.01871461]
[1723855554610,0.7097,2595.8,2595.7,1.92561]
[1723855556614,6.59484721,2595.8,2595.5,1.92577]
[1723855556907,0.1067546,2595.7,2595.5,1.92579]
[1723855557210,2.63533,2595.8,2595.5,1.92579]
[1723855557406,0.10674593,2595.7,2595.6,1.92568]
[1723855557606,0.7097,2595.8,2595.7,1.92565]
[1723855557803,0.7097,2595.8,2595.6,1.92567]
[1723855557804,0.81643782,2595.8,2595.6,1.92567]
[1723855558003,0.7097,2595.8,2595.6,1.92567]
[1723855558204,0.10674382,2595.7,2595.6,1.92567]
[1723855558404,0.7097,2595.8,2595.6,1.92567]
[1723855558614,0.7097,2595.8,2595.7,1.92565]
[1723855558802,0.81643274,2595.8,2595.7,1.92565]
[1723855559404,4.66923274,2595.8,2595.6,1.9257]
[1723855559606,0.7097,2595.8,2595.6,1.9257]
[1723855559811,0.10673776,2595.7,2595.5,1.92577]
[1723855560006,0.7097,2595.8,2595.6,1.92568]
[1723855560199,0.10674335,2595.7,2595.6,1.92568]
[1723855560405,0.7097,2595.8,2595.7,1.92565]
[1723855560601,0.81643713,2595.8,2595.7,1.92565]
[1723855561002,0.81643601,2595.8,2595.7,1.92565]
[1723855561515,0.35450403,2595.9,2595.8,1.92558]
[1723855561711,0.46121783,2595.9,2595.8,1.92558]
[1723855562214,0.35450403,2595.9,2595.8,1.92558]
[1723855562817,0.00300403,2595.9,2595.8,9.8145402]
[1723855563005,0.00300403,2595.9,2595.8,11.7401202]
[1723855563206,0.00300403,2595.9,2595.8,12.74691632]
[1723855563511,0.00300403,2595.9,2595.8,10.82133632]
[1723855564014,0.00300403,2595.9,2595.8,9.8145402]
[1723855564210,0.00300403,2595.9,2595.8,10.82133632]
[1723855564413,0.00300403,2595.9,2595.8,9.8145402]
[1723855566625,0.00300403,2595.9,2595.8,1.92558]
[1723855567319,3.85500403,2595.9,2595.6,3.2078]
[1723855567516,3.31454655,2595.8,2595.3,0.00394054]
[1723855567710,0.38180403,2595.9,2595.7,1.92562]
[1723855567909,0.10673261,2595.8,2595.4,4.99118239]
[1723855568111,0.10673261,2595.8,2595.3,0.00394054]
[1723855568112,0.10673916,2595.7,2595.6,1.92569]
[1723855568313,0.38180403,2595.9,2595.7,1.92561]
[1723855568521,0.38180403,2595.9,2595.6,1.92573]
[1723855568728,0.38180403,2595.9,2595.7,1.92564]
[1723855568917,0.38180403,2595.9,2595.8,1.92558]
[1723855569112,0.38180403,2595.9,2595.8,5.93984223]
[1723855569520,0.38180403,2595.9,2595.8,1.92558]
[1723855569823,0.38180403,2595.9,2595.5,1.72169612]
[1723855570015,0.38180403,2595.9,2595.7,1.92562]
[1723855570216,0.38180403,2595.9,2595.8,1.92558]
[1723855570521,0.00300403,2595.9,2595.8,10.24792102]
[1723855570715,1.87558435,2596.4,2596.3,1.92521]
[1723855570919,0.3591,2596.4,2596.3,1.92521]
[1723855571522,0.7503,2596.7,2596.5,1.92503]
[1723855571820,1.11372219,2596.7,2596.4,1.9251]
[1723855572328,1.11372219,2596.7,2596.4,6.32881725]
[1723855572523,1.11372219,2596.7,2596.3,0.00578402]
[1723855572524,3.03864219,2596.7,2596.3,0.00578402]
[1723855572726,2.0316757,2596.6,2596.3,0.00578402]
[1723855572926,3.03867219,2596.7,2596.3,0.00578402]
[1723855573121,1.11372219,2596.7,2596.3,1.93099402]
[1723855574040,1.11372219,2596.7,2596.5,1.92505]
[1723855575820,1.11372219,2596.7,2596.4,0.3493]
[1723855576127,1.11372219,2596.7,2596.6,1.92498]
[1723855576325,0.00432219,2596.7,2596.6,1.92498]
[1723855576630,0.0002921,2596.7,2596.6,10.57923195]
[1723855577219,0.0002921,2596.7,2596.6,13.90823195]
[1723855577420,1.51648435,2597.5,2596.7,3.8512]
[1723855577621,3.5757,2597.6,2597.3,1.92442]
[1723855578527,3.57855158,2597.6,2597.4,1.92439]
[1723855579226,3.57855158,2597.6,2597.5,5.99381541]
[1723855579227,0.00285158,2597.6,2597.5,5.99381541]
[1723855580527,0.00285158,2597.6,2597.5,4.06949541]
[1723855580831,0.00285158,2597.6,2597.5,1.92432]
[1723855581234,0.00285158,2597.6,2597.5,6.36150109]
[1723855583233,0.00285158,2597.6,2597.5,1.92432]
[1723855583835,0.00285158,2597.6,2597.3,0.00283183]
[1723855584036,1.92439,2597.4,2597.3,0.00283183]
[1723855584230,3.03246,2597.5,2597.3,0.00283183]
[1723855584530,5.77479,2597.4,2597.3,0.00283183]
[1723855587932,4.3159,2597.5,2597.4,1.92439]
[1723855587933,1.1081,2597.5,2597.4,1.92439]
[1723855588654,1.92439,2597.4,2597.3,0.00283183]
[1723855589030,3.03246,2597.5,2597.3,0.00283183]
[1723855589231,6.88285,2597.5,2597.3,0.00283183]
[1723855589833,5.77479,2597.4,2596.5,3.2078]
[1723855590037,1.92454,2597.2,2596.5,3.2078]
[1723855590346,1.92472,2597.0,2596.5,5.13282]
[1723855590547,0.742,2596.9,2596.5,3.2078]
[1723855590754,0.742,2596.9,2596.3,0.00578402]
[1723855590755,1.92503,2596.6,2596.3,0.00578402]
[1723855591044,4.5932,2596.9,2596.3,0.00578402]
[1723855591045,0.371,2596.5,2596.3,0.01007]
[1723855591247,0.742,2596.9,2596.5,1.92502]
[1723855591451,0.742,2596.9,2596.5,1.92503]
[1723855591452,0.371,2596.8,2596.5,1.92503]
[1723855591641,0.371,2596.8,2596.6,4.36778873]
[1723855591838,0.371,2596.8,2596.4,1.92513]
[1723855592042,0.371,2596.8,2596.5,1.92502]
[1723855592646,0.371,2596.8,2596.5,1.92503]
[1723855593341,0.371,2596.8,2596.3,3.68377]
[1723855593547,0.371,2596.8,2596.7,1.92491]
[1723855593749,0.371,2596.8,2596.6,4.26000985]
[1723855593750,0.371,2596.8,2596.6,1.92495]
[1723855593947,0.371,2596.8,2596.5,1.92502]
[1723855594450,0.371,2596.8,2596.6,1.92498]
[1723855595238,0.371,2596.8,2596.7,1.92491]
[1723855595844,0.371,2596.8,2596.6,1.92494]
[1723855596743,0.371,2596.8,2596.3,5.26425]
[1723855596943,0.371,2596.8,2596.3,0.01007]
[1723855596944,3.2078,2596.7,2596.3,0.01007]
[1723855597449,0.371,2596.8,2596.3,3.33907]
[1723855597653,0.371,2596.8,2596.5,1.92501]
[1723855597848,2.29584,2596.8,2596.5,1.92501]
[1723855598154,1.92492,2596.7,2596.4,1.92509]
[1723855598855,1.92501,2596.6,2596.3,5.26425]
[1723855599055,1.92501,2596.6,2596.3,0.01007]
[1723855599254,1.92501,2596.6,2596.3,1.93527]
[1723855599851,1.92506,2596.5,2596.3,0.01007]
[1723855600154,2.29953,2596.4,2596.3,0.01007]
[1723855600951,0.3744,2596.4,2596.3,0.01007]
[1723855601451,0.7439,2596.4,2596.3,0.01007]
[1723855601652,2.66903,2596.4,2596.3,0.01007]
[1723855602056,0.7439,2596.4,2596.3,0.01007]
[1723855603254,0.7439,2596.4,2596.3,1.93528]
[1723855603646,0.7439,2596.4,2596.3,0.01007]
[1723855605260,0.371,2596.8,2596.3,11.22119474]
[1723855605559,0.3558,2597.0,2596.8,1.9248]
[1723855606153,0.3558,2597.0,2596.9,1.92476]
[1723855606358,3.2078,2597.1,2597.0,1.92469]
[1723855607166,0.00285158,2597.6,2597.4,1.92437]
[1723855607558,1.92710158,2597.6,2597.3,1.92443]
[1723855607756,0.00285158,2597.6,2597.4,1.92438]
[1723855607956,3.85245158,2597.6,2597.3,1.92443]
[1723855608156,0.00285158,2597.6,2597.3,1.92443]
[1723855608862,1.92442,2597.4,2597.1,1.92457]
[1723855609472,5.13215,2597.5,2597.1,1.92457]
[1723855609767,5.13215,2597.5,2597.2,1.92452]
[1723855610264,5.13215,2597.5,2597.1,1.92457]
[1723855611161,3.2078,2597.5,2596.9,3.329]
[1723855611364,3.2078,2597.5,2597.2,4.34992826]
[1723855611565,3.2078,2597.5,2597.4,1.92439]
[1723855611763,3.2078,2597.5,2597.3,2.27931]
[1723855612166,3.2078,2597.5,2597.4,1.92439]
[1723855612468,0.00285158,2597.6,2597.4,1.92439]
[1723855612665,0.00285158,2597.6,2597.0,0.3549]
[1723855612974,1.92439,2597.4,2597.1,1.92457]
[1723855613356,1.92439,2597.4,2597.2,4.43628257]
[1723855613669,3.21065158,2597.6,2597.0,0.3549]
[1723855613865,1.92444,2597.4,2597.0,0.3549]
[1723855614076,1.92444,2597.4,2597.1,4.36787457]
[1723855614273,1.92447,2597.3,2597.1,4.36787457]
[1723855614567,2.27004,2597.2,2597.1,4.36787457]
[1723855614969,0.3455,2597.2,2597.1,4.36787457]
[1723855615164,4.1959,2597.2,2596.7,0.3549]
[1723855615368,4.1959,2597.2,2597.0,1.92465]
[1723855615369,0.3455,2597.2,2597.0,1.92465]
[1723855616272,0.3455,2597.2,2597.0,1.92464]
[1723855616968,0.3455,2597.2,2597.1,1.92461]
[1723855617771,0.3455,2597.2,2597.0,1.92466]
[1723855617959,0.3455,2597.2,2596.9,1.92473]
[1723855618165,0.3455,2597.2,2596.9,6.15105437]
[1723855618365,0.3455,2597.2,2596.9,1.92473]
[1723855618673,1.92463,2597.1,2596.8,3.2078]
[1723855618873,0.3455,2597.2,2596.9,1.92472]
[1723855619066,2.27005,2597.2,2596.9,1.92472]
[1723855619765,0.3455,2597.2,2596.9,1.92472]
[1723855620271,2.27004,2597.2,2596.9,1.92472]
[1723855620466,1.92465,2597.1,2596.8,5.1326]
[1723855620668,0.3496,2597.0,2596.8,5.1326]
[1723855621076,0.3459,2596.9,2596.8,5.1326]
[1723855621369,0.3455,2597.2,2597.0,1.92463]
[1723855622578,0.3455,2597.2,2597.1,1.92461]
[1723855622778,0.7065,2597.3,2597.1,1.92461]
[1723855622779,0.3459,2597.3,2597.1,1.92461]
[1723855623273,3.21065158,2597.6,2597.2,7.55740723]
[1723855623476,3.21065158,2597.6,2597.2,8.27020723]
[1723855623778,3.21065158,2597.6,2597.5,1.92432]
[1723855625081,0.00285158,2597.6,2597.5,1.92432]
[1723855627374,0.10944883,2597.6,2597.5,1.92432]
[1723855627575,0.00285158,2597.6,2597.5,1.92432]
[1723855627776,0.00285158,2597.6,2597.5,10.13927417]
[1723855627981,0.00285158,2597.6,2597.5,6.28967417]
[1723855628385,0.00285158,2597.6,2597.5,10.13927417]
[1723855630081,0.00285158,2597.6,2597.5,6.28967417]
[1723855633685,0.00285158,2597.6,2597.5,10.13927417]
[1723855633889,0.00285158,2597.6,2597.5,6.28967417]
[1723855634090,0.00285158,2597.6,2597.5,10.13927417]
[1723855635691,0.00285158,2597.6,2597.5,6.28967417]
[1723855636288,0.00285158,2597.6,2597.5,4.36535417]
[1723855636485,0.00285158,2597.6,2597.4,1.92437]
[1723855637389,0.00285158,2597.6,2597.5,1.92432]
[1723855637589,0.00285158,2597.6,2597.5,9.50169291]
[1723855637884,0.00285158,2597.6,2597.5,5.25332]
[1723855638085,0.00285158,2597.6,2597.5,13.27011361]
[1723855638292,0.00285158,2597.6,2597.5,9.42051361]
[1723855638587,0.00285158,2597.6,2597.5,13.27011361]
[1723855640094,0.00019279,2597.6,2597.5,13.27011361]
[1723855640289,0.00019279,2597.6,2597.5,15.19443361]
[1723855640583,0.3765,2598.3,2597.5,18.27011361]
[1723855640786,0.3765,2598.3,2598.1,1.9238]
[1723855641391,0.38128772,2598.3,2598.1,1.9238]
[1723855641891,0.38128772,2598.3,2598.0,1.92388]
[1723855642281,0.38128772,2598.3,2598.1,1.92387]
[1723855642790,0.38128772,2598.3,2598.2,1.9238]
[1723855642994,0.38128772,2598.3,2598.2,1.9273613]
[1723855643589,0.38128772,2598.3,2598.2,0.0035613]
[1723855643784,0.38128772,2598.3,2598.2,1.9273613]
[1723855643982,0.38128772,2598.3,2598.2,9.1051613]
[1723855644187,0.00478772,2598.3,2598.2,13.37124959]
[1723855644587,0.00478772,2598.3,2598.2,13.74034959]
[1723855645492,0.3553,2598.7,2598.6,1.9235]
[1723855645686,0.3553,2598.7,2598.6,5.2525]
[1723855645892,0.3553,2598.7,2598.6,13.54273997]
[1723855646204,0.3454,2599.0,2598.9,1.92328]
[1723855646496,0.00441966,2599.0,2598.9,3.329]
[1723855646796,0.00441966,2599.0,2598.9,9.90177555]
[1723855646989,3.2078,2599.2,2599.1,1.92313]
[1723855647293,3.2078,2599.2,2599.1,9.90082555]
[1723855647597,3.2078,2599.2,2599.1,6.05362555]
[1723855647795,3.2078,2599.2,2599.1,4.13049555]
[1723855648091,3.21085955,2599.2,2599.1,4.13049555]
[1723855648293,3.21085955,2599.2,2599.1,6.05362555]
[1723855648998,3.21085955,2599.2,2599.1,9.90082555]
[1723855649697,3.21085955,2599.2,2599.1,6.05362555]
[1723855649891,3.21085955,2599.2,2599.1,4.13049555]
[1723855650291,7.05805955,2599.2,2599.1,4.13049555]
[1723855650592,7.05805955,2599.2,2599.0,1.92315]
[1723855650898,1.92326,2599.0,2598.7,3.329]
[1723855651087,0.7329,2598.9,2598.8,1.92336]
[1723855651285,0.7329,2598.9,2598.8,6.06456867]
[1723855651485,0.3752,2598.9,2598.8,6.06456867]
[1723855651693,0.3752,2598.9,2598.8,9.91256867]
[1723855651898,0.3752,2598.9,2598.8,6.06456867]
[1723855652601,0.3752,2598.9,2598.8,4.14120867]
[1723855652900,4.5803,2598.9,2598.4,3.2078]
[1723855653095,0.7323,2598.9,2598.4,3.2078]
[1723855653284,2.65563,2598.9,2598.5,6.31687911]
[1723855653791,1.92337,2598.8,2598.5,4.39334911]
[1723855653999,1.92343,2598.7,2598.5,4.39334911]
[1723855654295,5.13127,2598.7,2598.2,7.3153513]
[1723855654494,5.13127,2598.7,2598.3,1.92369]
[1723855654701,5.13127,2598.7,2598.2,5.3915613]
[1723855654702,3.2078,2598.7,2598.2,5.3915613]
[1723855654887,1.92347,2598.7,2598.2,5.3915613]
[1723855655092,1.92362,2598.5,2598.3,4.07906895]
[1723855655395,2.29005,2598.4,2598.2,0.0035613]
[1723855655593,0.3704,2598.3,2598.2,0.0035613]
[1723855655799,0.7336,2598.3,2598.2,0.0035613]
[1723855656000,4.5824,2598.3,2598.2,0.0035613]
[1723855656190,6.50613,2598.3,2598.2,0.0035613]
[1723855656391,6.50613,2598.3,2597.9,3.21358402]
[1723855656392,9.5824,2598.3,2597.9,0.00578402]
[1723855656700,1.92391,2598.1,2597.9,0.00578402]
[1723855656889,5.77275,2598.0,2597.9,0.00578402]
[1723855657088,1.92395,2598.0,2597.9,0.00578402]
[1723855657398,10.77275,2598.0,2597.9,0.00932797]
[1723855657897,1.92406,2597.9,2597.4,6.5368]
[1723855658099,1.92399,2598.0,2597.4,6.5368]
[1723855658295,0.00574618,2598.2,2597.5,4.19511175]
[1723855658489,0.00574618,2598.2,2597.7,3.329]
[1723855658688,1.92389,2598.1,2597.7,3.33257113]
[1723855658892,0.00574618,2598.2,2597.7,3.33257113]
[1723855658893,0.00574618,2598.2,2597.7,3.3383438]
[1723855659095,0.00574618,2598.2,2597.8,6.07226146]
[1723855659492,1.92954618,2598.2,2597.8,6.07226146]
[1723855659802,2.28404618,2598.2,2597.8,6.07226146]
[1723855660412,2.28404618,2598.2,2597.7,3.3383438]
[1723855660700,2.28404618,2598.2,2597.8,1.92408]
[1723855660901,0.3706,2598.1,2597.8,1.92408]
[1723855662089,0.3706,2598.1,2597.7,3.3383438]
[1723855662090,1.92399,2598.0,2597.7,3.3383438]
[1723855662293,1.92409,2597.9,2597.7,0.0093438]
[1723855662695,1.9241,2597.8,2597.7,0.0093438]
[1723855662899,5.7737,2597.8,2597.7,0.0093438]
[1723855663698,1.92401,2598.0,2597.7,1.9335138]
[1723855663892,2.29451,2598.1,2597.7,0.0093438]
[1723855664096,0.3706,2598.1,2597.7,3.3383438]
[1723855664397,0.3706,2598.1,2597.9,1.92398]
[1723855665091,0.3706,2598.1,2597.7,3.3383438]
[1723855665401,0.3706,2598.1,2598.0,1.92395]
[1723855667302,0.3706,2598.1,2597.9,1.92397]
[1723855667801,2.29447,2598.1,2598.0,4.35356852]
[1723855668012,2.29447,2598.1,2597.8,1.92405]
[1723855668204,0.3706,2598.1,2597.8,1.92405]
[1723855668507,0.3706,2598.1,2597.9,1.92401]
[1723855671605,2.29449,2598.1,2597.7,5.2624538]
[1723855671904,2.29449,2598.1,2597.8,6.32177731]
[1723855672703,0.3706,2598.1,2597.9,1.92402]
[1723855673101,0.3706,2598.1,2597.7,3.7106438]
[1723855673295,0.3706,2598.1,2597.9,1.924]
[1723855674798,0.3706,2598.1,2597.8,1.92405]
[1723855674799,2.29449,2598.1,2597.8,1.92405]
[1723855675210,0.3706,2598.1,2597.9,1.92401]
[1723855676094,0.3706,2598.1,2597.8,1.92405]
[1723855676296,0.3706,2598.1,2597.8,1.92409]
[1723855676598,0.3706,2598.1,2597.7,0.0093438]
[1723855676599,0.3706,2598.1,2598.0,1.92395]
[1723855677099,0.36024618,2598.2,2598.0,1.92395]
[1723855677698,0.36024618,2598.2,2598.0,1.92391]
[1723855678106,0.00574618,2598.2,2598.1,1.92387]
[1723855678299,0.00574618,2598.2,2598.1,6.3967661]
[1723855678700,0.00574618,2598.2,2598.1,6.7692661]
[1723855681103,0.00574618,2598.2,2598.1,6.0198661]
[1723855681305,0.00574618,2598.2,2598.1,1.92387]
[1723855682804,0.00574618,2598.2,2598.0,3.329]
[1723855683102,0.00574618,2598.2,2598.1,6.26651596]
[1723855683704,0.00574618,2598.2,2598.1,10.46961596]
[1723855685601,0.00574618,2598.2,2598.1,4.34264596]
[1723855685801,0.00574618,2598.2,2598.1,6.26651596]
[1723855686010,0.00574618,2598.2,2598.1,10.11531596]
[1723855688205,7.693,2598.5,2598.1,10.11531596]
[1723855688206,1.51648435,2599.0,2598.1,17.52304124]
[1723855688515,3.21085955,2599.2,2599.1,1.92313]
[1723855688516,0.37935955,2599.2,2599.1,1.92313]
[1723855688713,0.37935955,2599.2,2598.7,3.329]
[1723855689005,0.37935955,2599.2,2598.9,1.92324]
[1723855689211,0.37935955,2599.2,2599.0,1.9232]
[1723855689414,0.37935955,2599.2,2599.1,1.92313]
[1723855689604,0.37935955,2599.2,2599.0,6.17416131]
[1723855689799,0.37935955,2599.2,2599.0,1.92316]
[1723855691011,0.37935955,2599.2,2598.9,1.92324]
[1723855691205,0.37935955,2599.2,2598.7,1.92339]
[1723855691206,1.92313,2599.1,2598.7,1.92339]
[1723855691517,0.37935955,2599.2,2598.7,1.92343]
[1723855691518,1.92321,2599.0,2598.7,1.92343]
[1723855691811,0.3564,2598.9,2598.6,5.387]
[1723855692109,1.92339,2598.8,2598.6,5.387]
[1723855692308,2.64562,2598.9,2598.6,1.92349]
[1723855692514,2.64562,2598.9,2598.6,1.9235]
[1723855692515,0.3711,2598.7,2598.6,1.9235]
[1723855693311,0.3711,2598.7,2598.5,1.92355]
[1723855693715,4.2191,2598.7,2598.5,1.92357]
[1723855693913,0.3711,2598.7,2598.4,3.329]
[1723855694115,0.3711,2598.7,2598.5,1.92351]
[1723855694814,0.3711,2598.7,2598.4,3.329]
[1723855695015,1.9235,2598.6,2598.2,1.92377]
[1723855695208,2.29456,2598.7,2598.3,1.92368]
[1723855695413,2.29456,2598.7,2598.1,3.329]
[1723855695414,1.92353,2598.6,2598.2,1.92377]
[1723855695615,1.92358,2598.5,2598.2,4.35481092]
[1723855695812,0.3713,2598.4,2598.1,5.25282]
[1723855696018,0.3713,2598.4,2598.2,1.92379]
[1723855696019,0.7357,2598.4,2598.2,1.92379]
[1723855696322,0.3504,2598.3,2598.2,6.29092838]
[1723855696616,0.3504,2598.3,2598.2,4.36713838]
[1723855697909,0.3504,2598.3,2598.2,6.29093838]
[1723855698110,0.3713,2598.4,2598.3,1.92373]
[1723855698317,0.3504,2598.7,2598.5,1.92353]
[1723855698914,0.3504,2598.7,2598.6,1.9235]
[1723855699820,0.3504,2598.7,2598.5,0.3767]
[1723855699821,0.3504,2598.7,2598.5,2.30025]
[1723855700015,0.3504,2598.7,2598.6,1.9235]
[1723855702218,4.113,2598.8,2598.7,1.92343]
[1723855702516,7.961,2598.8,2598.4,3.329]
[1723855702816,2.02997715,2598.7,2598.4,1.9236]
[1723855703021,2.29677,2598.7,2598.4,1.9236]
[1723855703220,4.2213,2598.7,2598.2,3.2078]
[1723855703526,1.92383,2598.2,2597.9,7.31098]
[1723855703819,0.3733,2598.1,2598.0,1.92394]
[1723855704011,0.7207,2598.1,2598.0,1.92394]
[1723855704413,0.3733,2598.1,2598.0,6.23364112]
[1723855705020,0.3733,2598.1,2598.0,1.92394]
[1723855705519,0.3733,2598.1,2597.9,1.92398]
[1723855705726,2.29721,2598.1,2597.8,5.25306]
[1723855706020,0.3638,2598.0,2597.8,3.329]
[1723855706224,0.3638,2598.0,2597.9,1.92402]
[1723855706413,0.3733,2598.1,2597.8,3.329]
[1723855706617,0.3733,2598.1,2597.8,5.25305]
[1723855706919,0.3733,2598.1,2597.9,1.92396]
[1723855707115,0.3733,2598.1,2597.8,5.25306]
[1723855707519,0.3733,2598.1,2597.8,3.329]
[1723855707720,1.92396,2598.0,2597.8,3.329]
[1723855707921,1.92396,2598.0,2597.7,1.9334738]
[1723855708426,2.29721,2598.1,2597.8,1.92409]
[1723855708720,0.3733,2598.1,2597.8,1.92409]
[1723855708920,0.3733,2598.1,2598.0,1.92395]
[1723855711130,1.92369,2598.4,2598.1,1.92387]
[1723855711131,1.51648435,2598.4,2598.1,1.92387]
[1723855711334,0.1065346,2598.3,2598.2,1.9238]
[1723855711521,8.41348435,2598.8,2598.3,3.8488]
[1723855711825,1.51648435,2598.9,2598.8,1.92336]
[1723855712032,0.10647482,2598.9,2598.8,1.92336]